bitfinex/quotes_SOLUSD_20220105
["timestamp","ask_amount","ask_price","bid_price","bid_amount"]
[1641426058692,32.04425256,155.06,155.01,17.845]
[1641426059087,28.39224843,155.06,155.01,17.845]
[1641426060087,28.65224843,155.06,155.01,17.706412]
[1641426060488,28.65224843,155.06,155.01,17.456412]
[1641426060689,28.65224843,155.06,155.01,7.781412]
[1641426060988,28.65224843,155.06,155.01,6.0470271]
[1641426061388,3.65200413,155.05,155.01,6.0470271]
[1641426061588,3.91200413,155.05,155.01,6.0470271]
[1641426063494,1.3077715,155.02,155.01,8.32061419]
[1641426063697,1.3077715,155.02,155.01,14.38501411]
[1641426063895,1.5677715,155.02,155.01,14.38501411]
[1641426064095,1.3077715,155.02,155.01,14.38501411]
[1641426064895,1.3077715,155.02,155.01,24.06191411]
[1641426068095,3.65200413,155.09,155.01,23.52148599]
[1641426068696,3.65200413,155.1,155.01,23.52148599]
[1641426068900,3.65200413,155.1,155.02,2.51810528]
[1641426069096,3.65200413,155.1,155.06,9.6707]
[1641426069297,5.47903167,155.12,155.07,7.92]
[1641426069498,3.167e-05,155.12,155.08,7.92]
[1641426069699,3.167e-05,155.12,155.09,0.25]
[1641426069899,3.167e-05,155.12,155.1,13.98439992]
[1641426070100,3.167e-05,155.17,155.11,0.25]
[1641426070302,3.167e-05,155.17,155.12,7.92]
[1641426070500,3.167e-05,155.17,155.12,8.18]
[1641426070702,3.167e-05,155.17,155.13,0.25]
[1641426070900,2.74441211,155.22,155.14,7.92]
[1641426071100,2.74441211,155.22,155.18,9.666]
[1641426071301,1.733116,155.21,155.18,17.586]
[1641426071505,1.733116,155.21,155.19,6.06439992]
[1641426071800,1.733116,155.21,155.2,7.92]
[1641426072101,1.733116,155.21,155.2,8.17]
[1641426072300,1.733116,155.21,155.2,20.32900281]
[1641426072499,1.733116,155.21,155.2,20.58900281]
[1641426072704,1.733116,155.21,155.2,20.32900281]
[1641426072900,1.6e-05,155.21,155.2,41.0945]
[1641426073100,1.6e-05,155.21,155.2,17.8345]
[1641426074603,92.9,155.28,155.2,17.8345]
[1641426074604,92.660016,155.28,155.21,2.37631789]
[1641426074805,92.400016,155.28,155.22,17.583]
[1641426075004,92.400016,155.28,155.22,17.833]
[1641426075404,2.31723194,155.29,155.22,17.833]
[1641426075807,2.31723194,155.29,155.22,7.92]
[1641426076007,11.98163194,155.29,155.22,7.92]
[1641426076205,12.24163194,155.29,155.22,7.92]
[1641426076407,112.43339481,155.29,155.22,7.92]
[1641426077206,7.29176287,155.28,155.22,7.92]
[1641426077506,7.55176287,155.28,155.22,10.39462185]
[1641426077714,7.55176287,155.28,155.23,0.25]
[1641426077909,7.29176287,155.28,155.23,0.25]
[1641426078111,92.9,155.29,155.23,0.25]
[1641426079110,92.9,155.29,155.24,7.92]
[1641426079310,92.9,155.29,155.24,17.5817]
[1641426079511,92.9,155.29,155.25,0.25]
[1641426080110,93.16,155.29,155.25,0.25]
[1641426080312,0.26,155.29,155.25,0.25]
[1641426080511,2.85984736,155.3,155.25,2.8702456]
[1641426080714,2.85984736,155.3,155.25,20.4517456]
[1641426081314,72.0202,155.32,155.25,20.4517456]
[1641426081513,25.6882772,155.33,155.25,20.4517456]
[1641426082314,28.32000416,155.33,155.25,20.4517456]
[1641426082515,151.8197,155.36,155.25,20.4517456]
[1641426082716,41.3018113,155.4,155.25,27.04790457]
[1641426082717,24.7986,155.39,155.25,27.04790457]
[1641426082914,24.7986,155.39,155.25,126.01790457]
[1641426083517,2.22966302,155.38,155.25,126.01790457]
[1641426083941,2.22966302,155.38,155.25,125.75790457]
[1641426084141,2.22966302,155.38,155.25,120.89490457]
[1641426084345,3.64377535,155.37,155.25,119.4217456]
[1641426084943,3.90377535,155.37,155.25,119.4217456]
[1641426085144,11.19132605,155.37,155.25,119.4217456]
[1641426085443,11.19132605,155.37,155.25,120.89490457]
[1641426085843,11.19132605,155.37,155.25,119.4217456]
[1641426086043,3.64377535,155.36,155.25,119.6817456]
[1641426086244,2.50710245,155.35,155.25,119.6817456]
[1641426086445,2.50710245,155.35,155.25,119.4317456]
[1641426086645,2.76710245,155.35,155.25,119.1717456]
[1641426086846,2.76710245,155.35,155.25,116.5515]
[1641426087044,3.64377535,155.34,155.25,106.89]
[1641426087244,25.88867454,155.33,155.25,7.92]
[1641426087847,25.88867454,155.33,155.26,0.25]
[1641426088046,10.93132605,155.32,155.27,17.5801]
[1641426088246,10.93132605,155.32,155.27,7.92]
[1641426089046,2.45401048,155.31,155.28,0.25]
[1641426089449,2.71401048,155.31,155.29,3.03219997]
[1641426089649,2.71401048,155.31,155.28,0.25]
[1641426089848,3.64377535,155.3,155.27,7.92]
[1641426090048,3.90377535,155.3,155.27,7.92]
[1641426090651,3.64377535,155.29,155.27,7.92]
[1641426091050,2.25161431,155.28,155.27,7.92]
[1641426091451,2.51161431,155.28,155.27,7.92]
[1641426092455,6.15538966,155.28,155.27,7.92]
[1641426093455,39.15538966,155.28,155.27,7.92]
[1641426093655,43.92,155.27,155.22,9.6632]
[1641426093855,74.85748502,155.27,155.2,7.92]
[1641426094157,75.11748502,155.27,155.18,7.92]
[1641426094354,79.3517,155.26,155.18,7.92]
[1641426094555,9.6673,155.24,155.18,7.92]
[1641426094958,9.9273,155.24,155.18,7.92]
[1641426095358,0.26,155.24,155.18,7.92]
[1641426095559,89.2779,155.26,155.2,2.51490992]
[1641426095758,54.29168502,155.27,155.2,10.43490992]
[1641426095759,23.3542,155.27,155.2,10.43490992]
[1641426095958,79.2281,155.32,155.21,0.25]
[1641426096160,79.2281,155.32,155.22,7.92]
[1641426096361,100.9405,155.35,155.23,2.54153699]
[1641426096559,100.9405,155.35,155.24,7.92]
[1641426096759,30.51178824,155.32,155.24,7.92]
[1641426096959,9.663,155.31,155.25,9.912]
[1641426097558,9.663,155.31,155.25,9.662]
[1641426097760,9.663,155.31,155.24,7.92]
[1641426098159,9.663,155.31,155.25,0.25]
[1641426098359,3.64502917,155.3,155.25,0.25]
[1641426099058,3.90502917,155.3,155.25,0.25]
[1641426099459,3.90502917,155.3,155.26,2.63072709]
[1641426099659,3.90502917,155.3,155.27,0.25]
[1641426099862,3.90502917,155.3,155.28,6.06439992]
[1641426100062,100.9405,155.35,155.29,0.25]
[1641426100265,76.2916,155.35,155.29,8.34917396]
[1641426100465,148.8172113,155.39,155.29,8.34917396]
[1641426100466,9.6596,155.37,155.29,18.00877396]
[1641426100666,9.6596,155.37,155.29,25.92877396]
[1641426100964,3.64431554,155.32,155.29,23.5306]
[1641426101164,3.64431554,155.32,155.3,6.06439992]
[1641426102063,33.2817317,155.36,155.29,7.92]
[1641426102590,33.2817317,155.36,155.3,0.25]
[1641426102765,33.2817317,155.36,155.3,9.9088]
[1641426102963,3.64431554,155.35,155.3,9.9088]
[1641426103364,3.90431554,155.35,155.3,9.9088]
[1641426104864,3.64431554,155.34,155.31,7.92]
[1641426105067,3.64431554,155.34,155.32,15.97139992]
[1641426105264,3.64431554,155.34,155.32,18.18801763]
[1641426105466,3.64431554,155.34,155.32,15.97139992]
[1641426105765,3.64431554,155.34,155.32,15.72139992]
[1641426105966,3.64431554,155.38,155.32,6.06439992]
[1641426106966,11.19228408,155.38,155.32,6.06439992]
[1641426107368,10.93228408,155.38,155.32,6.06439992]
[1641426107568,10.93228408,155.38,155.33,0.25]
[1641426107766,10.93228408,155.38,155.33,8.17]
[1641426107967,3.64431554,155.37,155.33,8.17]
[1641426108669,3.64431554,155.37,155.35,9.6561]
[1641426108868,31.88295322,155.39,155.33,8.17]
[1641426110372,31.88295322,155.39,155.33,17.8261]
[1641426110571,32.14295322,155.39,155.33,17.5761]
[1641426110772,32.14295322,155.39,155.34,0.25]
[1641426110971,32.14295322,155.39,155.34,0.124208]
[1641426111172,32.14295322,155.39,155.33,17.5761]
[1641426112178,32.14295322,155.39,155.33,7.92]
[1641426112383,32.14295322,155.39,155.3,9.6578]
[1641426112578,32.14295322,155.39,155.27,7.92]
[1641426112978,3.64295844,155.38,155.27,7.92]
[1641426113379,3.90295844,155.38,155.27,7.92]
[1641426113579,3.90295844,155.38,155.28,0.25]
[1641426114180,9.6607,155.34,155.28,0.25]
[1641426114378,28.36334714,155.33,155.27,7.92]
[1641426114579,28.62334714,155.33,155.27,7.92]
[1641426115580,28.62334714,155.33,155.27,17.5797]
[1641426115780,28.36334714,155.33,155.28,0.25]
[1641426115982,75.6655,155.36,155.28,0.25]
[1641426116782,75.6655,155.36,155.29,2.86146292]
[1641426116983,102.0625068,155.36,155.29,2.86146292]
[1641426117183,111.7216068,155.36,155.3,0.25]
[1641426120103,111.7216068,155.36,155.29,9.6588]
[1641426120301,111.7216068,155.36,155.27,7.92]
[1641426120504,111.7216068,155.36,155.25,7.92]
[1641426120702,9.6625,155.31,155.25,7.92]
[1641426120901,29.67699925,155.3,155.25,7.92]
[1641426121100,29.93699925,155.3,155.25,7.92]
[1641426122303,39.59989925,155.3,155.25,7.92]
[1641426123905,39.59989925,155.3,155.18,32.2102]
[1641426124106,39.59989925,155.3,155.19,7.92]
[1641426124905,39.59989925,155.3,155.2,2.6564472]
[1641426125609,39.59989925,155.3,155.21,0.25]
[1641426126009,39.59989925,155.3,155.2,2.6564472]
[1641426128610,39.59989925,155.3,155.21,0.25]
[1641426128813,39.59989925,155.3,155.2,2.6564472]
[1641426129216,114.17409925,155.3,155.2,2.6564472]
[1641426129516,114.17409925,155.3,155.19,7.92]
[1641426129717,120.49709925,155.3,155.19,7.92]
[1641426129919,120.49709925,155.3,155.13,0.06]
[1641426130116,9.6676,155.23,155.17,0.06]
[1641426130317,31.061828,155.22,155.17,0.06]
[1641426130516,31.321828,155.22,155.17,0.06]
[1641426130714,31.321828,155.22,155.17,2.34874673]
[1641426131115,31.061828,155.22,155.17,2.34874673]
[1641426131315,31.061828,155.22,155.17,0.06]
[1641426131522,31.061828,155.22,155.18,0.25]
[1641426131719,31.061828,155.22,155.17,0.06]
[1641426132318,32.7912071,155.22,155.17,0.06]
[1641426132917,42.7189071,155.22,155.17,0.06]
[1641426133322,44.0230577,155.22,155.17,0.06]
[1641426134121,44.0230577,155.22,155.17,0.31]
[1641426134422,44.0230577,155.22,155.17,0.06]
[1641426134822,51.2910577,155.22,155.17,0.06]
[1641426135122,51.2910577,155.22,155.11,7.92]
[1641426135331,51.2910577,155.22,155.12,0.06]
[1641426135722,51.7910577,155.22,155.12,0.06]
[1641426136348,44.5230577,155.22,155.12,0.06]
[1641426136525,123.8461577,155.22,155.12,0.06]
[1641426136722,123.5861577,155.22,155.12,0.06]
[1641426136923,123.0861577,155.22,155.12,0.31]
[1641426137523,123.0861577,155.22,155.12,0.06]
[1641426138127,123.3461577,155.22,155.14,0.06]
[1641426138327,123.0861577,155.22,155.14,0.06]
[1641426138931,34.0953577,155.22,155.15,7.92]
[1641426139133,34.0953577,155.22,155.16,3.2619061]
[1641426139333,3.0335297,155.22,155.16,11.1819061]
[1641426139635,3.0335297,155.22,155.17,1.53315897]
[1641426139836,3.0335297,155.22,155.19,2.25641015]
[1641426140034,3.0335297,155.22,155.19,10.17641015]
[1641426140235,3.0335297,155.22,155.2,6.31439992]
[1641426140435,3.0335297,155.22,155.2,6.37439992]
[1641426140836,3.0335297,155.22,155.2,6.12439992]
[1641426141035,3.0335297,155.22,155.2,0.06]
[1641426141735,12.7016297,155.22,155.2,0.06]
[1641426141935,12.9616297,155.22,155.2,0.06]
[1641426142137,12.9616297,155.22,155.21,3.03219995]
[1641426142539,12.9616297,155.22,155.2,0.06]
[1641426143862,3.0335297,155.22,155.2,0.06]
[1641426145361,3.2935297,155.22,155.2,0.06]
[1641426151573,3.0335297,155.22,155.21,6.06439992]
[1641426151766,3.0335297,155.22,155.21,13.98439992]
[1641426151966,1.82248168,155.25,155.22,2.67615864]
[1641426152168,1.82248168,155.25,155.23,8.23]
[1641426152767,25.28151536,155.29,155.24,6.06439992]
[1641426153166,25.28151536,155.29,155.25,0.06]
[1641426153968,25.54151536,155.29,155.25,0.06]
[1641426154567,1.82248168,155.28,155.25,0.06]
[1641426154770,1.82248168,155.28,155.2,7.92]
[1641426154967,2.08248168,155.28,155.2,7.98]
[1641426155171,2.08248168,155.28,155.2,0.06]
[1641426155567,29.9898408,155.23,155.2,0.06]
[1641426155969,30.2498408,155.23,155.2,0.06]
[1641426156367,30.2498408,155.23,155.16,0.06]
[1641426156772,9.67,155.19,155.16,0.06]
[1641426156967,16.079,155.19,155.15,1.6616484]
[1641426157369,16.079,155.19,155.11,0.06]
[1641426157967,10.43,155.19,155.11,0.06]
[1641426158367,9.6725,155.15,155.11,0.06]
[1641426158567,9.9325,155.15,155.11,0.06]
[1641426159071,0.26,155.15,155.11,0.31]
[1641426159469,2.08248168,155.17,155.11,9.9801]
[1641426159670,2.08248168,155.17,155.11,17.9001]
[1641426159869,1.82248168,155.17,155.11,17.9001]
[1641426160471,28.85500041,155.17,155.11,17.9001]
[1641426160672,27.03251873,155.17,155.11,17.9001]
[1641426161274,27.29251873,155.17,155.11,17.9001]
[1641426161476,27.29251873,155.17,155.12,1.6616484]
[1641426161673,27.29251873,155.17,155.13,12.11048383]
[1641426161975,27.29251873,155.17,155.12,1.6616484]
[1641426162572,27.29251873,155.17,155.11,9.5816484]
[1641426163474,36.96341873,155.17,155.11,7.92]
[1641426164676,0.40295134,155.13,155.11,7.92]
[1641426165078,0.40295134,155.13,155.12,6.06439992]
[1641426165877,0.40295134,155.13,155.12,6.31439992]
[1641426166983,0.40295134,155.13,155.12,15.98459992]
[1641426167179,0.40295134,155.13,155.12,23.90459992]
[1641426168682,1.0218565,155.19,155.13,43.90742927]
[1641426168882,1.0218565,155.19,155.14,7.92]
[1641426169085,1.0218565,155.19,155.16,9.6679]
[1641426169285,1.0218565,155.19,155.17,16.68008804]
[1641426169485,1.0218565,155.19,155.17,16.93008804]
[1641426170884,1.0218565,155.19,155.18,9.6648]
[1641426171084,1.0218565,155.19,155.18,17.8348]
[1641426174788,1.0218565,155.19,155.18,8.17]
[1641426174986,1.2818565,155.19,155.18,8.17]
[1641426175387,1.2818565,155.19,155.18,10.95219995]
[1641426175588,1.2818565,155.19,155.18,7.92]
[1641426176188,1.2818565,155.19,155.14,9.5816484]
[1641426176491,1.2818565,155.19,155.14,7.92]
[1641426176689,1.2818565,155.19,155.15,9.6687]
[1641426178619,1.2818565,155.19,155.14,17.5893]
[1641426179018,1.2818565,155.19,155.11,1.6616484]
[1641426179721,1.7818565,155.19,155.11,1.6616484]
[1641426180023,1.7818565,155.19,155.11,4.6464031]
[1641426180220,10.9515565,155.19,155.11,4.6464031]
[1641426180420,1.82248168,155.18,155.12,0.25]
[1641426180720,1.82248168,155.18,155.11,2.9847547]
[1641426181324,1.0218565,155.19,155.14,3.04927277]
[1641426181523,1.0218565,155.19,155.12,0.25]
[1641426182230,1.0218565,155.19,155.12,8.17]
[1641426182423,1.0218565,155.19,155.12,7.92]
[1641426182628,1.0218565,155.19,155.15,9.6686]
[1641426183122,1.0218565,155.19,155.12,7.92]
[1641426183726,1.2818565,155.19,155.12,7.92]
[1641426184123,3.10433818,155.19,155.12,7.92]
[1641426184523,12.77403818,155.19,155.12,7.92]
[1641426185126,12.77403818,155.19,155.09,9.5816484]
[1641426185324,37.25643818,155.19,155.09,9.5816484]
[1641426185924,37.25643818,155.19,155.09,11.95388822]
[1641426186123,9.6723,155.15,155.09,19.96453982]
[1641426186523,9.9323,155.15,155.09,19.96453982]
[1641426186925,9.9323,155.15,155.1,0.25]
[1641426187732,1.82248168,155.17,155.1,9.6719]
[1641426187932,75.69278168,155.18,155.1,9.6719]
[1641426188828,9.6708,155.17,155.1,9.6719]
[1641426189128,9.6708,155.17,155.12,12.06448542]
[1641426189529,9.9308,155.17,155.12,12.06448542]
[1641426190129,0.26,155.17,155.12,12.06448542]
[1641426190334,2.84433818,155.19,155.14,9.6691]
[1641426190529,2.84433818,155.19,155.13,0.25]
[1641426190731,2.84433818,155.19,155.15,0.25]
[1641426190930,2.84433818,155.19,155.16,2.65213985]
[1641426191133,2.84433818,155.19,155.17,6.31439992]
[1641426191333,2.84433818,155.19,155.17,15.98189992]
[1641426191631,1.0218565,155.19,155.17,15.98189992]
[1641426191931,1.82248168,155.22,155.17,14.96004342]
[1641426192529,2.08248168,155.22,155.17,14.96004342]
[1641426192933,25.32834741,155.23,155.17,14.96004342]
[1641426193132,11.48888168,155.24,155.17,14.96004342]
[1641426193133,1.82248168,155.24,155.17,14.96004342]
[1641426194131,23.6068326,155.23,155.17,14.96004342]
[1641426194531,23.8668326,155.23,155.17,14.96004342]
[1641426194733,23.6068326,155.23,155.17,14.96004342]
[1641426194943,1.82248168,155.25,155.17,14.96004342]
[1641426195438,1.82248168,155.25,155.18,7.92]
[1641426195637,1.82248168,155.25,155.21,9.6643]
[1641426195835,1.82248168,155.25,155.22,2.83430596]
[1641426196036,1.82248168,155.25,155.23,12.96254342]
[1641426196436,1.82248168,155.25,155.24,0.25]
[1641426196635,1.82248168,155.25,155.24,9.9129]
[1641426196836,1.82248168,155.31,155.26,49.0]
[1641426197036,1.8724442,155.36,155.32,7.83951832]
[1641426197238,7.33806877,155.36,155.32,15.09351832]
[1641426197437,7.33806877,155.36,155.33,0.25]
[1641426197641,7.33806877,155.36,155.34,10.95219995]
[1641426197837,7.33806877,155.36,155.34,20.60799995]
[1641426198042,7.33806877,155.36,155.35,3.1249893]
[1641426198238,7.33806877,155.36,155.35,8.17]
[1641426198440,1.8724442,155.36,155.35,7.92]
[1641426198639,1.8724442,155.36,155.34,3.03219995]
[1641426198840,2.8943007,155.36,155.32,15.75951832]
[1641426199041,2.8943007,155.36,155.32,25.41701832]
[1641426199241,2.8943007,155.36,155.33,2.54417911]
[1641426199442,2.8943007,155.36,155.34,3.03219995]
[1641426199642,2.8943007,155.36,155.34,5.04254342]
[1641426199842,1.8724442,155.36,155.34,5.04254342]
[1641426201044,2.43045599,155.39,155.35,0.25]
[1641426202345,2.43045599,155.39,155.34,9.9063]
[1641426202645,57.5932,155.43,155.34,17.8263]
[1641426202848,47.9372,155.43,155.34,17.8263]
[1641426203646,28.44957869,155.42,155.34,17.8263]
[1641426204478,28.44957869,155.42,155.34,7.92]
[1641426204678,43.91557869,155.42,155.34,7.92]
[1641426205077,44.17557869,155.42,155.34,7.92]
[1641426205480,44.17557869,155.42,155.34,10.49741289]
[1641426205481,38.36557869,155.42,155.34,10.49741289]
[1641426205884,12.23758058,155.42,155.35,0.25]
[1641426206083,2.58158058,155.42,155.35,0.25]
[1641426206282,3.64171714,155.41,155.35,0.25]
[1641426206482,3.90171714,155.41,155.35,0.25]
[1641426206687,3.90171714,155.41,155.36,7.92]
[1641426206885,3.64171714,155.41,155.38,9.6538]
[1641426207083,3.64171714,155.41,155.39,0.25]
[1641426207287,82.21733661,155.45,155.39,4.51338589]
[1641426207486,2.88483661,155.45,155.39,4.51338589]
[1641426208387,2.88483661,155.45,155.39,14.16648589]
[1641426208883,2.88483661,155.45,155.39,22.08648589]
[1641426209484,2.88483661,155.45,155.39,19.83344347]
[1641426210084,3.14483661,155.45,155.39,10.18034347]
[1641426210684,3.14483661,155.45,155.39,12.53458576]
[1641426211285,0.26,155.45,155.39,22.18758576]
[1641426211485,95.5772,155.47,155.39,22.18758576]
[1641426211889,95.5772,155.47,155.39,23.66074473]
[1641426212085,95.5772,155.47,155.39,22.18758576]
[1641426214186,95.5772,155.47,155.39,12.53458576]
[1641426214389,95.5772,155.47,155.39,10.18034347]
[1641426214587,95.8372,155.47,155.39,7.92]
[1641426214787,95.8372,155.47,155.35,7.92]
[1641426214987,75.4334,155.46,155.35,7.92]
[1641426215190,28.64626273,155.45,155.35,7.92]
[1641426215389,30.98698301,155.45,155.35,7.92]
[1641426215592,31.24698301,155.45,155.35,7.92]
[1641426215992,30.98698301,155.45,155.35,7.92]
[1641426216395,30.98698301,155.45,155.36,0.25]
[1641426216690,30.98698301,155.45,155.37,10.33625883]
[1641426216891,30.98698301,155.45,155.37,11.8094178]
[1641426217091,30.98698301,155.45,155.37,10.33625883]
[1641426217692,40.64088301,155.45,155.37,10.33625883]
[1641426217894,40.64088301,155.45,155.37,19.99015883]
[1641426218092,40.90088301,155.45,155.37,19.99015883]
[1641426218595,40.90088301,155.45,155.38,0.25]
[1641426218795,40.90088301,155.45,155.37,19.99015883]
[1641426218991,40.90088301,155.45,155.38,8.17]
[1641426219193,40.90088301,155.45,155.38,17.8235]
[1641426219392,31.24698301,155.45,155.38,17.8235]
[1641426219594,30.98698301,155.45,155.38,17.8235]
[1641426220398,40.64088301,155.45,155.38,17.8235]
[1641426220594,40.64088301,155.45,155.38,7.92]
[1641426220794,40.64088301,155.45,155.37,2.41625883]
[1641426220998,40.64088301,155.45,155.36,9.6543]
[1641426220999,40.90088301,155.45,155.33,7.92]
[1641426221200,40.90088301,155.45,155.37,0.25]
[1641426221799,40.64088301,155.45,155.37,9.64315897]
[1641426221997,40.64088301,155.45,155.37,12.69945202]
[1641426222197,40.64088301,155.45,155.37,11.22629305]
[1641426222797,40.64088301,155.45,155.37,20.88039305]
[1641426222997,40.64088301,155.45,155.37,11.22629305]
[1641426223497,40.90088301,155.45,155.37,11.22629305]
[1641426223699,40.64088301,155.45,155.37,11.22629305]
[1641426224202,9.6539,155.45,155.37,11.22629305]
[1641426224405,95.5772,155.47,155.37,20.88029305]
[1641426225504,105.4898,155.47,155.37,20.88029305]
[1641426225705,2.65940945,155.46,155.37,20.88029305]
[1641426226104,2.91940945,155.46,155.37,20.88029305]
[1641426226905,2.65940945,155.46,155.37,20.88029305]
[1641426227303,9.37494677,155.46,155.37,20.88029305]
[1641426228507,6.71553732,155.46,155.37,22.35345202]
[1641426229605,9.61483688,155.46,155.37,22.35345202]
[1641426230434,9.87483688,155.46,155.37,20.88029305]
[1641426230832,9.87483688,155.46,155.37,17.574]
[1641426231936,9.87483688,155.46,155.37,20.15680258]
[1641426232136,9.87483688,155.46,155.38,0.25]
[1641426232335,19.52793688,155.46,155.38,9.9039]
[1641426232535,19.52793688,155.46,155.38,17.8239]
[1641426235840,19.26793688,155.46,155.38,17.8239]
[1641426236040,9.61483688,155.46,155.38,17.8239]
[1641426236240,9.61483688,155.46,155.38,17.5739]
[1641426237739,9.61483688,155.46,155.42,9.6506]
[1641426238139,9.61483688,155.46,155.43,0.25]
[1641426238342,6.71553732,155.46,155.44,3.03219995]
[1641426238739,6.71553732,155.46,155.45,9.8998]
[1641426238942,7.73739382,155.46,155.45,9.8998]
[1641426239341,6.71553732,155.46,155.45,2.26034347]
[1641426239542,6.71553732,155.46,155.45,2.01034347]
[1641426240042,6.97553732,155.46,155.44,3.03219995]
[1641426240243,7.99739382,155.46,155.43,17.5699]
[1641426240444,7.99739382,155.46,155.44,0.25]
[1641426240944,7.99739382,155.46,155.43,17.5699]
[1641426241645,7.99739382,155.46,155.44,0.25]
[1641426242244,6.71553732,155.46,155.44,5.29254342]
[1641426242441,95.5772,155.47,155.44,5.04254342]
[1641426242642,95.5772,155.47,155.45,0.25]
[1641426243042,96.5990565,155.47,155.43,10.18881992]
[1641426243243,95.5772,155.47,155.44,0.25]
[1641426243445,95.5772,155.47,155.45,5.04254342]
[1641426244346,23.0218565,155.46,155.43,7.92]
[1641426244545,23.0218565,155.46,155.4,7.92]
[1641426244743,23.0218565,155.46,155.38,7.92]
[1641426245243,1.0218565,155.46,155.39,0.25]
[1641426245444,1.0218565,155.46,155.4,10.4251119]
[1641426245646,0.26,155.46,155.41,0.25]
[1641426245844,98.41450242,155.47,155.42,7.92]
[1641426246245,98.41450242,155.47,155.43,2.53702218]
[1641426246445,95.8372,155.47,155.43,2.78702218]
[1641426246645,95.5772,155.47,155.43,2.78702218]
[1641426246848,95.5772,155.47,155.44,7.92]
[1641426247045,95.5772,155.47,155.45,3.28219995]
[1641426247245,95.5772,155.47,155.46,7.92]
[1641426247646,95.5772,155.47,155.46,8.17]
[1641426248874,95.5772,155.47,155.46,17.8179]
[1641426250547,95.5772,155.47,155.46,19.82824347]
[1641426252551,96.8590565,155.47,155.46,7.92]
[1641426252751,4.92,155.46,155.38,32.1682]
[1641426253048,4.92,155.46,155.39,7.92]
[1641426253049,5.18,155.46,155.39,7.92]
[1641426253653,2.47300316,155.45,155.39,7.92]
[1641426254050,2.73300316,155.45,155.39,7.92]
[1641426254257,2.73300316,155.45,155.34,7.92]
[1641426254449,77.86870316,155.45,155.34,7.92]
[1641426254653,2.47300316,155.45,155.34,7.92]
[1641426254850,12.12650316,155.45,155.37,9.6531]
[1641426255051,2.47300316,155.45,155.38,3.03512717]
[1641426255750,2.47300316,155.45,155.39,7.92]
[1641426255951,2.73300316,155.45,155.39,17.5722]
[1641426256252,74.0192,155.46,155.39,17.5722]
[1641426256851,74.0192,155.46,155.4,0.25]
[1641426257052,74.0192,155.46,155.4,9.9016]
[1641426257254,76.68070894,155.46,155.4,9.9016]
[1641426257454,76.68070894,155.46,155.41,1.47315897]
[1641426257657,2.66150894,155.46,155.42,0.25]
[1641426257853,2.66150894,155.46,155.41,2.632651]
[1641426258055,2.92150894,155.46,155.42,0.25]
[1641426259557,2.92150894,155.46,155.41,0.25]
[1641426260154,2.92150894,155.46,155.4,0.25]
[1641426260556,12.57430894,155.46,155.4,0.25]
[1641426263161,12.57430894,155.46,155.39,0.25]
[1641426263881,12.57430894,155.46,155.38,0.25]
[1641426264084,12.57430894,155.46,155.35,7.92]
[1641426264486,12.57430894,155.46,155.35,10.61901196]
[1641426265486,12.57430894,155.46,155.36,0.25]
[1641426265886,12.31430894,155.46,155.36,0.25]
[1641426266089,12.31430894,155.46,155.36,8.17]
[1641426267292,145.54265258,155.47,155.36,17.8243]
[1641426267494,122.74745258,155.47,155.37,1.47315897]
[1641426267691,122.74745258,155.47,155.38,8.17]
[1641426268092,95.5772,155.47,155.38,8.17]
[1641426268292,95.5772,155.47,155.39,2.26940359]
[1641426268494,95.8372,155.47,155.41,9.6511]
[1641426268693,95.8372,155.47,155.42,0.25]
[1641426269093,95.5772,155.47,155.42,0.25]
[1641426269895,95.5772,155.47,155.42,9.9011]
[1641426270697,95.5772,155.47,155.42,0.25]
[1641426271096,105.4894,155.47,155.42,0.25]
[1641426272699,105.4894,155.47,155.39,17.5731]
[1641426272899,105.4894,155.47,155.39,7.92]
[1641426273098,105.4894,155.47,155.35,7.92]
[1641426273499,105.4894,155.47,155.32,7.83951832]
[1641426273500,114.88255897,155.47,155.32,7.83951832]
[1641426273700,23.4628,155.46,155.32,7.83951832]
[1641426273900,25.38027594,155.38,155.32,7.83951832]